Cogmind - Beta 9.2 @@@ ROGUE MODE // 2019.11.18 @ 03:45:38 Player: Finestep Result: Destroyed by G-34 Mercenary with Small Laser Performance ------------- Evolutions (0) 0 Regions Visited (2) 400 Robots Destroyed (33) 165 Value Destroyed (644) 644 Prototype IDs (4) 80 Alien Tech Used (0) 0 Bonus (0) 0 TOTAL SCORE: 1289 Bonus ------- None Cogmind --------- Core Integrity 0/250 Matter 273/300 Energy 86/100 System Corruption 2% Temperature Cool (33) Movement Treading (160) Location -10/Mines Parts ------- > --- POWER (1) -------- (None) > --- PROPULSION (2) --- Light Treads Light Treads > --- UTILITY (2) ------ Large Storage Unit Large Storage Unit > --- WEAPON (2) ------- Beam Rifle > --- INVENTORY (16) --- Ion Engine Light Treads Light Treads Armored Wheel Armored Wheel Armored Wheel Armored Wheel Medium Storage Unit Large Storage Unit Hacking Suite Rocket Launcher Datajack Peak State ------------ > --- POWER ------------ Light Ion Engine > --- PROPULSION ------- Light Treads Wheel > --- UTILITY ---------- Large Storage Unit Large Storage Unit > --- WEAPON ----------- Medium Laser Beam Rifle > --- INVENTORY -------- Ion Engine Light Treads Light Treads Light Treads Armored Wheel Armored Wheel Armored Wheel Armored Wheel Medium Storage Unit Large Storage Unit Hacking Suite Beam Rifle Rocket Launcher Datajack [Rating: 10] Favorites ----------- Power Light Ion Engine Engine Light Ion Engine Propulsion Light Treads Treads Light Treads Wheel Wheel Utility Large Storage Unit Storage Large Storage Unit Weapon Medium Laser Energy Gun Medium Laser Energy Cannon Beam Cannon Ballistic Gun Light Assault Rifle Ballistic Cannon Light Cannon Launcher Rocket Launcher Build | -11 -10 -10 ------- Run | Scr Mat Min Slots Evolved . | . . . Power . | . . . Propulsion . | . . . Utility . | . . . Weapon . | . . . Parts Attached 30 | 7 17 6 Power 5 | 1 4 . Engine 5 | 1 4 . Core . | . . . Reactor . | . . . Propulsion 8 | 2 5 1 Treads 5 | . 4 1 Leg . | . . . Wheel 3 | 2 1 . Hover . | . . . Flight . | . . . Utility 5 | 2 3 . Device . | . . . Storage 5 | 2 3 . Processor . | . . . Hackware . | . . . Protection . | . . . Artifact . | . . . Weapon 12 | 2 5 5 Energy Gun 7 | 1 3 3 Energy Cannon 1 | . . 1 Ballistic Gun 2 | 1 1 . Ballistic Cannon 1 | . 1 . Launcher 1 | . . 1 Special Weapon . | . . . Impact Weapon . | . . . Slashing Weapon . | . . . Piercing Weapon . | . . . Special Melee Weapon . | . . . Unidentified Prototypes . | . . . Parts Lost 13 | . 7 6 Power 3 | . 2 1 Propulsion 3 | . 2 1 Utility . | . . . Weapon 7 | . 3 4 Highest Loss Streak 6 | . 4 6 Average Slot Usage (%) 97 | . 99 96 Engine 13 | . 13 12 Treads 15 | . 15 15 Wheel 12 | . 12 12 Storage 27 | . 27 28 Energy Gun 13 | . 13 14 Energy Cannon 2 | . . 6 Ballistic Gun 4 | . 6 . Ballistic Cannon 7 | . 8 5 Naked Turns . | . . . Heaviest Build 42 | 14 42 40 Greatest Support 40 | 26 40 40 Greatest Overweight (x) 4 | 3 4 3 Average Overweight (x) 2 | . 1 2 Largest Inventory Capacity 16 | 8 16 16 Average Capacity 12 | 6 10 16 Most Carried 16 | 5 16 16 Average Carried 11 | 3 9 15 Final Capacity 16 | 8 16 16 Final Carried 16 | 5 16 12 Class Distribution -------------------- 100% | Mutant Dominant Class ---------------- Mutant | -10/Materials Mutant | -10/Mines Resources | -11 -10 -10 ----------- Run | Scr Mat Min Matter Collected 682 | 266 335 81 Remotely . | . . . Salvage Created 951 | 75 790 86 Parts 66 | 5 57 4 Haulers Intercepted 2 | . 2 . Recyclers Shooed 1 | . . 1 Parts Field Recycled . | . . . Retrieved Matter . | . . . Parts Self-Destructed . | . . . Prevented . | . . . Kills | -11 -10 -10 ------- Run | Scr Mat Min Combat Hostiles Destroyed 16 | . 11 5 Guns 11 | . 9 2 Cannons 3 | . 2 1 AOE 2 | . . 2 Classes Destroyed 9 | 2 6 1 Worker 3 | . 2 1 Builder 1 | . 1 . Tunneler 2 | 1 1 . Hauler 2 | . 2 . Recycler 2 | 1 1 . Operator 4 | . 4 . Watcher 3 | . 3 . Grunt 13 | . 11 2 Assembled 3 | . . 3 Best Kill Streak 4 | 2 4 3 Combat Bots Only 3 | . 3 3 Max Kills in Single Turn 2 | 1 1 2 Gunslinging . | . . . Exploded 2 | . . 2 Melee . | . . . Uniques/NPCs Destroyed . | . . . Combat | -11 -10 -10 -------- Run | Scr Mat Min Damage Taken 1675 | . 908 767 Core 253 | . 145 108 Absorbed by Shields . | . . . Core Remaining (%) 100 | 100 . . Volleys Fired 135 | 4 99 32 Largest 2 | 2 2 2 Hottest 110 | 70 85 110 Shots Fired 248 | 8 187 53 Gun 196 | 8 154 34 Cannon 51 | . 33 18 Launcher 1 | . . 1 Special . | . . . Kinetic 128 | 4 110 14 Thermal 119 | 4 77 38 Explosive 1 | . . 1 Electromagnetic . | . . . Robot Hit Streak 11 | 6 11 4 Robot Miss Streak 5 | 1 5 3 Penetration Max . | . . . Secondary Targets . | . . . Shots Hit Robots 158 | 7 120 31 Core Hits 60 | 3 46 11 Critical Hits . | . . . Critical Kills . | . . . Critical Parts Destroyed . | . . . Melee Attacks . | . . . Impact . | . . . Slashing . | . . . Piercing . | . . . Sneak Attacks . | . . . Combat Hostiles . | . . . Follow-up Attacks . | . . . Damage Inflicted 2004 | 69 1270 665 Guns 1381 | 69 980 332 Cannons 476 | . 288 188 Explosions 145 | . . 145 Melee . | . . . Ramming 2 | . 2 . Kinetic 869 | 20 714 135 Thermal 988 | 49 554 385 Explosive 145 | . . 145 Electromagnetic . | . . . Impact . | . . . Slashing . | . . . Piercing . | . . . Highest Corruption 2 | . . 2 Average Corruption 1 | . . 1 Corruption Purged . | . . . Effects 1 | . . 1 Message Errors 1 | . . 1 Overload Shots . | . . . Overflow Damage 29 | . . 29 Projectiles 16 | . . 16 Explosions 13 | . . 13 Melee . | . . . Knockbacks 6 | . 3 3 Impact . | . . . Kinetic 6 | . 3 3 Secondary . | . . . Self-Inflicted Damage 48 | . . 48 Shots 1 | . . 1 Rammed 2 | . 2 . Targets Rammed 2 | . 2 . Kicked . | . . . Crushed . | . . . Highest Temperature 390 | 50 204 390 Average Temperature 80 | 24 61 136 Received Heat Transfer 636 | . 522 114 Effects 5 | . 1 4 Shutdowns 1 | . . 1 Interference 3 | . 1 2 Damage (minor) 1 | . . 1 Siege Activations . | . . . Robots Corrupted . | . . . Combat Hostiles . | . . . Parts Fried . | . . . Impact Corruptions . | . . . Robots Melted . | . . . Combat Hostiles . | . . . Parts Melted 1 | 1 . . Heat Transferred 2649 | 148 1465 1036 Parts Sabotaged . | . . . Parts Stolen . | . . . Parts Stripped . | . . . Power Chain Reactions . | . . . Missiles Intercepted . | . . . Alert | -11 -10 -10 ------- Run | Scr Mat Min Peak Influence 198 | 10 198 64 Average Influence 52 | 3 68 26 Maximum Alert Level . | . . . Low Security (%) 100 | 100 100 100 Level 1 . | . . . Level 2 . | . . . Level 3 . | . . . Level 4 . | . . . Level 5 . | . . . High Security . | . . . Max Security . | . . . Squads Dispatched 5 | . 5 . Investigation 1 | . 1 . Extermination . | . . . Reinforcement 4 | . 4 . Assault . | . . . Garrison . | . . . Intercept . | . . . Construction Impeded . | . . . Haulers Reinforced . | . . . Stealth | -11 -10 -10 --------- Run | Scr Mat Min Distress Signals 1 | . 1 . Communications Jammed . | . . . Distress Signals . | . . . Times Spotted 34 | . 27 7 Peak Tracking Total 4 | . 4 3 Tactical Retreats . | . . . Traps | -11 -10 -10 ------- Run | Scr Mat Min Traps Triggered . | . . . Indirectly . | . . . Trap Hack Attempts . | . . . Triggered . | . . . Disarmed . | . . . Reprogrammed . | . . . Reused . | . . . Traps Extracted . | . . . Installed . | . . . Triggered . | . . . Machines | -11 -10 -10 ---------- Run | Scr Mat Min Machines Disabled . | . . . Max in Single Turn . | . . . Machines Sabotaged . | . . . Garrisons Compromised . | . . . Overloaded Fab Kills . | . . . Fab Network Shutdowns . | . . . Hacking | -11 -10 -10 --------- Run | Scr Mat Min Machines Accessed 7 | . 6 1 Terminals 6 | . 5 1 Fabricators . | . . . Repair Stations . | . . . Recycling Units 1 | . 1 . Scanalyzers . | . . . Garrison Access . | . . . Total Hacks 19 | . 17 2 Successful 11 | . 10 1 Failed 8 | . 7 1 Catastrophic . | . . . Database Lockouts . | . . . Manual 5 | . 5 . Terminals 17 | . 15 2 Fabricators . | . . . Repair Stations . | . . . Recycling Units 2 | . 2 . Scanalyzers . | . . . Garrison Access . | . . . Terminal Hacks 8 | . 7 1 Robot Analysis 1 | . 1 . Prototype ID Bank 2 | . 2 . Alert Level 1 | . 1 . Hauler Manifests 1 | . 1 . Registered Components 1 | . 1 . Zone Layout 2 | . 1 1 Fabricator Hacks . | . . . Repair Station Hacks . | . . . Recycling Unit Hacks 1 | . 1 . Retrieve Components 1 | . 1 . Scanalyzer . | . . . Garrison Access Hacks . | . . . Unauthorized Hacks 5 | . 5 . Terminals 1 | . 1 . Botnet 1 | . 1 . Fabricators . | . . . Repair Stations . | . . . Recycling Units 1 | . 1 . Tunnel 1 | . 1 . Scanalyzers . | . . . Garrison Access . | . . . Data Cores Recovered 1 | . 1 . Used . | . . . Hacking Detections 5 | . 4 1 Full Trace Events . | . . . Feedback Events . | . . . Feedback Blocked . | . . . Robot Schematics Acquired . | . . . Robots Built . | . . . Matter . | . . . Time . | . . . Total Robot Build Rating . | . . . Part Schematics Acquired . | . . . Parts Built . | . . . Matter . | . . . Time . | . . . Total Part Build Rating . | . . . Parts Repaired . | . . . Time . | . . . Parts Recycled . | . . . Recycled Matter . | . . . Retrieved Matter . | . . . Retrieved Components 9 | . 9 . Parts Scanalyzed . | . . . Part Schematics Acquired . | . . . Parts Damaged . | . . . Bothacking | -11 -10 -10 ------------ Run | Scr Mat Min Used RIF Installer . | . . . Robots Hacked . | . . . Non-combat . | . . . Combat . | . . . Robot Hacks Applied . | . . . Relay Couplers Released . | . . . Robots Rewired . | . . . Allies Hacked . | . . . Hacks Repelled . | . . . Allies | -11 -10 -10 -------- Run | Scr Mat Min Total Allies . | . . . Largest Group . | . . . Highest-Rated Group . | . . . Highest-Rated Ally . | . . . Total Orders . | . . . Ally Attacks . | . . . Total Damage . | . . . Kills . | . . . Allies Corrupted . | . . . Allies Melted . | . . . Intel | -11 -10 -10 ------- Run | Scr Mat Min Robot Analysis Total 1 | . 1 . Derelict Logs Recovered 2 | . . 2 Drone Launches . | . . . Drone Recoveries . | . . . Exploration | -11 -10 -10 ------------- Run | Scr Mat Min Turns Passed 2233 | 65 1398 770 Spaces Moved 1503 | 45 878 580 Core 13 | 13 . . Treads 221 | . 181 40 Legs . | . . . Wheels 1269 | 32 697 540 Hover . | . . . Flight . | . . . Fastest Speed 50 | 50 90 110 Average Speed 113 | 86 114 113 Slowest Speed 200 | 200 180 160 Overloaded Moves . | . . . Propulsion Burnouts . | . . . Robots Hopped . | . . . Cave-ins Triggered . | . . . Exploration Rate (%) 62 | 3 92 91 Regions Visited 2 Branch Regions 1 Pre-discovered Areas 1 | . 1 . Known Exits Taken . | . . . Unknown Exits Taken 2 | 1 1 . Scrap Searched 1 | . . 1 Spaces Dug . | . . . Terrain Destroyed . | . . . Melee . | . . . Projectile . | . . . AOE . | . . . Actions | -11 -10 -10 --------- Run | Scr Mat Min Total 1805 | 60 1105 640 Wait 89 | . 69 20 Move 1501 | 44 877 580 Hop . | . . . Pick Up 30 | 5 24 1 Fast Attach 12 | 7 5 . Attach 10 | . 5 5 Detach 1 | . 1 . Swap 8 | . 7 1 Drop 17 | . 16 1 Fire 135 | 4 99 32 Melee . | . . . Ram . | . . . Kick . | . . . Crush 2 | . 2 . Escape Stasis . | . . . Rewire . | . . . Trap . | . . . Miscellaneous . | . . . Route ------- -11/Scrapyard -10/Materials (discovered 5 exits: *Mat x3 / *Min x2) -10/Mines (discovered 2 exits: *Mat x2) History --------- Turn | Location | Event 6 | -11/Scrapyard | Discovered new exit (range 15) 66 | -11/Scrapyard | Entered Materials 301 | -10/Materials | Lost 4 parts (1p2n1w) 302 | -10/Materials | Build established: Mutant 498 | -10/Materials | Discovered new exit (range 13) 643 | -10/Materials | Core integrity fell below 50% 703 | -10/Materials | Discovered new exit (range 16) 938 | -10/Materials | Discovered new exit (range 6) 1060 | -10/Materials | Discovered new exit (range 15) 1433 | -10/Materials | Discovered new exit (range 16) 1464 | -10/Materials | Entered Mines 1636 | -10/Mines | Discovered new exit (range 10) 1673 | -10/Mines | Identified exit to Materials 1756 | -10/Mines | Received a Rocket Launcher from a helpful Derelict 1780 | -10/Mines | Deemed a non-threat by the Exiles lab entrance 1928 | -10/Mines | Learned 4 Materials zone layouts 2127 | -10/Mines | Excavation squad dispatched 2127 | -10/Mines | A large section of the Mines collapsed 2147 | -10/Mines | Core integrity fell below 20% 2176 | -10/Mines | Lost 6 parts (1p1n4w) 2234 | -10/Mines | Destroyed by G-34 Mercenary with Small Laser Last Messages --------------- 02128_ Med. Laser destroyed. 02132_ Beam Cannon destroyed. 02132_ System corrupted by crushing effect (+1). 02138_ Lgt. Ion Engine destroyed. 02141_ Beam Rifle destroyed. 02141_ System corrupted by crushing effect (+1). 02145_ as-23457 destroyed. 02145_ Med. Laser destroyed. 02145_ Destroyed Med. Laser. 02145_ Wheel destroyed. 02145_ Destroyed Wheel. 02145_ as-45470 destroyed. 02157_ Destroyed Asb. Hover Unit. 02161_ as-62557 destroyed. 02163_ Acquired 3 matter. 02166_ U-05 Engineer lays Concrete. 02167_ Acquired 11 matter. 02168_ Acquired 4 matter. 02168_ U-05 Engineer lays Concrete. 02198_ &VK8OP2ECNLPTRTNIJVF8IW=CAJ<=YH84OXNM Map ----- +----------------------------------------------------+ | # #????????????????????????? ##??## # # # #??? | | # #????????????????????????? #???## # ##???? | | # #?????????????????????????#????## # ##???? | | # #??????????????????????????????# ### ##???? | | # #??????????????????????????????# # #???? | | # #??????????????????????????????# ## ##??? | | # #??????????????????????????????# # ##?? | | # #??????????????????????????????# #?? | | # #??????????????????????????????# #?? | | # #??????????????????????????????## #?? | | # #???????????????????????????????## #?? | | # #????????????????????????????????#### #?? | | # #???????????????????????????????????### #?? | | # #?????????????????????????????????????## ##?? | | # #??????????????????????????????????????# ##??? | | # #??????????????????????????????????????# ##??? | | #??????????????????????????????????????# #??? | | ##???????????????????????????############# #??? | | #???????????????????????????## ##?? | | ###???????????????????####### ##? | | #???????????????????# ###### #? | | ####????????????????# ##????# #? | | #????????????????#gg#### #?????# ##? | | "" ## #???????????????## #??### #?????## ##?? | | "" ## ###????????????## #????# #??????#####??? | | "" ############## @##???# #???####??????? | | "" ## #???# #??## ##?????? | | #### ########### ## ##??# #??# ##????? | | ####??# #?????????# ## ##?# #??# #????? | | ??????# ##????????# ## ### ##?## ##???? | | ?????## ##???????# ## #### #???? | | ????## ##??????# ## #???? | | ??### #??????##### #???? | | ??# #??????????### #???? | | ??# #????????????## #???? | | ??### #????????????## t ##???? | | ????#### #?????????#### #######????? | | ???????### #????????## #####??????????? | | ?????????# #????????# ##??????????????? | | ########?# #???###### ##???????????????? | | # ### ##### #####????????????????? | | # #### ##????????????????????? | | # ###########??# ##?????????????????????? | | # #???????????## #??????????????????????? | | # """ #??????????## #??????????????????????? | | # """ #??????????# #??????????????????????? | | # """ #??????????# #??????????????????????? | | ########??????????# #####?????????????